[Event "Titled Tuesday Blitz August 08 Early 2023"]
[White "Timmermans, Mark"]
[Black "Salman, Pavel"]
[WhiteFideId "1026399"]
[BlackFideId "24153753"]
[WhiteElo "2725"]
[BlackElo "2533"]
[Result "0-1"]
[Round "4"]
[TimeControl "180+1"]
[Date "2023.08.08"]
[WhiteClock "0:01:44"]
[BlackClock "0:01:37"]
[Board "79"]

1. b4 {[%clk 0:03:00]}  Nf6 {[%clk 0:02:59]} 2. Bb2 {[%clk 0:02:59]}  g6 {[%clk 0:03:00]} 3. b5 {[%clk 0:02:57]}  Bg7 {[%clk 0:02:59]} 4. c4 {[%clk 0:02:57]}  O-O {[%clk 0:02:59]} 5. a4 {[%clk 0:02:50]}  d6 {[%clk 0:02:56]} 6. e3 {[%clk 0:02:49]}  e5 {[%clk 0:02:56]} 7. Nc3 {[%clk 0:02:48]}  Nbd7 {[%clk 0:02:54]} 8. Nf3 {[%clk 0:02:48]}  Re8 {[%clk 0:02:54]} 9. Be2 {[%clk 0:02:46]}  e4 {[%clk 0:02:47]} 10. Nd4 {[%clk 0:02:46]}  Ne5 {[%clk 0:02:47]} 11. O-O {[%clk 0:02:46]}  c5 {[%clk 0:02:35]} 12. bxc6 {[%clk 0:02:43]}  bxc6 {[%clk 0:02:36]} 13. f4 {[%clk 0:02:44]}  exf3 {[%clk 0:02:35]} 14. Nxf3 {[%clk 0:02:42]}  h6 {[%clk 0:02:24]} 15. d4 {[%clk 0:02:39]}  Neg4 {[%clk 0:02:22]} 16. Re1 {[%clk 0:02:26]}  Nxe3 {[%clk 0:02:20]} 17. Qd3 {[%clk 0:02:26]}  Bf5 {[%clk 0:02:19]} 18. Qd2 {[%clk 0:02:23]}  Nc2 {[%clk 0:02:16]} 19. Rac1 {[%clk 0:02:00]}  Nxe1 {[%clk 0:02:15]} 20. Rxe1 {[%clk 0:02:01]}  Rb8 {[%clk 0:02:03]} 21. Ba3 {[%clk 0:02:01]}  Rb3 {[%clk 0:01:55]} 22. Qc1 {[%clk 0:01:44]}  Qa5 {[%clk 0:01:37]} 0-1


[Site "https://www.chess.com"]

[Event "Titled Tuesday Blitz August 08 Early 2023"]
[White "Gontcharov, Vladislav"]
[Black "Jaferian, Koosha"]
[WhiteFideId "4123492"]
[BlackFideId "12507440"]
[WhiteElo "2526"]
[BlackElo "2717"]
[Result "1/2-1/2"]
[Round "4"]
[TimeControl "180+1"]
[Date "2023.08.08"]
[WhiteClock "0:00:00"]
[BlackClock "0:00:02"]
[Board "83"]

1. d4 {[%clk 0:03:00]}  Nf6 {[%clk 0:03:00]} 2. c4 {[%clk 0:02:57]}  e6 {[%clk 0:03:00]} 3. Nc3 {[%clk 0:02:57]}  Bb4 {[%clk 0:03:00]} 4. e3 {[%clk 0:02:57]}  O-O {[%clk 0:03:00]} 5. Bd3 {[%clk 0:02:56]}  d5 {[%clk 0:03:00]} 6. Nf3 {[%clk 0:02:56]}  dxc4 {[%clk 0:02:59]} 7. Bxc4 {[%clk 0:02:56]}  c5 {[%clk 0:02:59]} 8. O-O {[%clk 0:02:55]}  cxd4 {[%clk 0:03:00]} 9. exd4 {[%clk 0:02:55]}  b6 {[%clk 0:03:00]} 10. Bg5 {[%clk 0:02:55]}  h6 {[%clk 0:03:00]} 11. Bh4 {[%clk 0:02:54]}  Bb7 {[%clk 0:02:57]} 12. Qe2 {[%clk 0:02:51]}  Nbd7 {[%clk 0:02:57]} 13. Rfd1 {[%clk 0:02:48]}  Qc7 {[%clk 0:02:45]} 14. Rac1 {[%clk 0:02:21]}  Bxf3 {[%clk 0:02:21]} 15. gxf3 {[%clk 0:02:21]}  Qf4 {[%clk 0:02:17]} 16. Bg3 {[%clk 0:02:16]}  Qg5 {[%clk 0:02:12]} 17. Ne4 {[%clk 0:02:05]}  Qh5 {[%clk 0:02:10]} 18. a3 {[%clk 0:01:55]}  Be7 {[%clk 0:02:08]} 19. Bb5 {[%clk 0:01:23]}  Nxe4 {[%clk 0:01:58]} 20. fxe4 {[%clk 0:01:21]}  Qxe2 {[%clk 0:01:51]} 21. Bxe2 {[%clk 0:01:20]}  Nf6 {[%clk 0:01:52]} 22. f3 {[%clk 0:01:10]}  Rac8 {[%clk 0:01:48]} 23. Ba6 {[%clk 0:01:06]}  Rxc1 {[%clk 0:01:44]} 24. Rxc1 {[%clk 0:01:07]}  Nh5 {[%clk 0:01:25]} 25. Be5 {[%clk 0:00:58]}  f6 {[%clk 0:01:18]} 26. Bc7 {[%clk 0:00:57]}  e5 {[%clk 0:01:10]} 27. d5 {[%clk 0:00:51]}  Bc5+ {[%clk 0:01:11]} 28. Kf1 {[%clk 0:00:50]}  Nf4 {[%clk 0:01:04]} 29. b4 {[%clk 0:00:46]}  Be3 {[%clk 0:00:58]} 30. Rd1 {[%clk 0:00:44]}  Bd4 {[%clk 0:00:53]} 31. d6 {[%clk 0:00:43]}  Kh7 {[%clk 0:00:35]} 32. Bc4 {[%clk 0:00:41]}  b5 {[%clk 0:00:32]} 33. Bb3 {[%clk 0:00:31]}  Bb6 {[%clk 0:00:32]} 34. Bxb6 {[%clk 0:00:20]}  axb6 {[%clk 0:00:33]} 35. d7 {[%clk 0:00:20]}  Rd8 {[%clk 0:00:33]} 36. Kf2 {[%clk 0:00:20]}  g6 {[%clk 0:00:26]} 37. Rd6 {[%clk 0:00:20]}  Kg7 {[%clk 0:00:26]} 38. Ke3 {[%clk 0:00:19]}  Nh5 {[%clk 0:00:18]} 39. a4 {[%clk 0:00:18]}  bxa4 {[%clk 0:00:16]} 40. Bxa4 {[%clk 0:00:18]}  Kf8 {[%clk 0:00:16]} 41. Rxb6 {[%clk 0:00:18]}  Ke7 {[%clk 0:00:16]} 42. Ra6 {[%clk 0:00:15]}  Nf4 {[%clk 0:00:16]} 43. Ra7 {[%clk 0:00:15]}  Ne6 {[%clk 0:00:16]} 44. Bb3 {[%clk 0:00:14]}  Nd4 {[%clk 0:00:16]} 45. Bc4 {[%clk 0:00:13]}  Rxd7 {[%clk 0:00:16]} 46. Rxd7+ {[%clk 0:00:12]}  Kxd7 {[%clk 0:00:17]} 47. Kd3 {[%clk 0:00:13]}  Kc6 {[%clk 0:00:15]} 48. f4 {[%clk 0:00:12]}  Nf3 {[%clk 0:00:12]} 49. fxe5 {[%clk 0:00:12]}  Nxe5+ {[%clk 0:00:12]} 50. Kd4 {[%clk 0:00:13]}  Nf3+ {[%clk 0:00:13]} 51. Kc3 {[%clk 0:00:13]}  Nxh2 {[%clk 0:00:13]} 52. Bf7 {[%clk 0:00:12]}  g5 {[%clk 0:00:14]} 53. Kd4 {[%clk 0:00:12]}  Nf3+ {[%clk 0:00:14]} 54. Ke3 {[%clk 0:00:12]}  Ne5 {[%clk 0:00:14]} 55. Be8+ {[%clk 0:00:11]}  Kb6 {[%clk 0:00:14]} 56. Kd4 {[%clk 0:00:11]}  Nc6+ {[%clk 0:00:10]} 57. Kd5 {[%clk 0:00:11]}  Nxb4+ {[%clk 0:00:08]} 58. Ke6 {[%clk 0:00:11]}  g4 {[%clk 0:00:08]} 59. Bh5 {[%clk 0:00:09]}  g3 {[%clk 0:00:08]} 60. Bf3 {[%clk 0:00:09]}  Nd3 {[%clk 0:00:05]} 61. Kxf6 {[%clk 0:00:09]}  Ne1 {[%clk 0:00:05]} 62. Bh1 {[%clk 0:00:08]}  Kc5 {[%clk 0:00:06]} 63. Kg6 {[%clk 0:00:08]}  Kd4 {[%clk 0:00:06]} 64. Kxh6 {[%clk 0:00:09]}  Ke3 {[%clk 0:00:04]} 65. e5 {[%clk 0:00:09]}  Kf2 {[%clk 0:00:03]} 66. e6 {[%clk 0:00:09]}  Kg1 {[%clk 0:00:02]} 67. Be4 {[%clk 0:00:09]}  Kf2 {[%clk 0:00:01]} 68. Bh1 {[%clk 0:00:08]}  Kg1 {[%clk 0:00:01]} 69. Bd5 {[%clk 0:00:08]}  Kf2 {[%clk 0:00:01]} 70. e7 {[%clk 0:00:08]}  g2 {[%clk 0:00:01]} 71. Bxg2 {[%clk 0:00:08]}  Nxg2 {[%clk 0:00:02]} 72. e8=Q {[%clk 0:00:08]}  Ne3 {[%clk 0:00:03]} 73. Kg5 {[%clk 0:00:08]}  Kf3 {[%clk 0:00:03]} 74. Qf7+ {[%clk 0:00:08]}  Ke4 {[%clk 0:00:03]} 75. Qb3 {[%clk 0:00:09]}  Nd5 {[%clk 0:00:03]} 76. Qc2+ {[%clk 0:00:09]}  Kd4 {[%clk 0:00:03]} 77. Qb2+ {[%clk 0:00:09]}  Ke4 {[%clk 0:00:04]} 78. Qa3 {[%clk 0:00:08]}  Ne3 {[%clk 0:00:04]} 79. Kf6 {[%clk 0:00:07]}  Nd5+ {[%clk 0:00:04]} 80. Ke6 {[%clk 0:00:07]}  Nf4+ {[%clk 0:00:04]} 81. Kd6 {[%clk 0:00:07]}  Nd3 {[%clk 0:00:05]} 82. Qa4+ {[%clk 0:00:08]}  Ke3 {[%clk 0:00:04]} 83. Qg4 {[%clk 0:00:07]}  Nf4 {[%clk 0:00:02]} 84. Ke5 {[%clk 0:00:06]}  Nd3+ {[%clk 0:00:02]} 85. Kf5 {[%clk 0:00:06]}  Nf2 {[%clk 0:00:02]} 86. Qg3+ {[%clk 0:00:05]}  Ke2 {[%clk 0:00:03]} 87. Kf4 {[%clk 0:00:05]}  Nd3+ {[%clk 0:00:03]} 88. Ke4 {[%clk 0:00:05]}  Nf2+ {[%clk 0:00:02]} 89. Kd4 {[%clk 0:00:06]}  Nd1 {[%clk 0:00:02]} 90. Qg2+ {[%clk 0:00:04]}  Nf2 {[%clk 0:00:03]} 91. Qh2 {[%clk 0:00:03]}  Kf3 {[%clk 0:00:03]} 92. Qg1 {[%clk 0:00:02]}  Ng4 {[%clk 0:00:03]} 93. Qf1+ {[%clk 0:00:02]}  Kg3 {[%clk 0:00:03]} 94. Ke4 {[%clk 0:00:02]}  Nf2+ {[%clk 0:00:03]} 95. Kf5 {[%clk 0:00:02]}  Kf3 {[%clk 0:00:02]} 96. Qe1 {[%clk 0:00:00]}  Nd3 {[%clk 0:00:02]} 1/2-1/2


[Site "https://www.chess.com"]

[Event "Titled Tuesday Blitz August 08 Early 2023"]
[White "Martin Barcelo, Carles"]
[Black "Yanchenko, Roman"]
[WhiteFideId "24561444"]
[BlackFideId "4137329"]
[WhiteElo "2525"]
[BlackElo "2717"]
[Result "0-1"]
[Round "4"]
[TimeControl "180+1"]
[Date "2023.08.08"]
[WhiteClock "0:00:01"]
[BlackClock "0:00:20"]
[Board "84"]

1. e4 {[%clk 0:02:53]}  e6 {[%clk 0:03:00]} 2. Nf3 {[%clk 0:02:47]}  d5 {[%clk 0:03:01]} 3. e5 {[%clk 0:02:48]}  c5 {[%clk 0:03:01]} 4. b4 {[%clk 0:02:48]}  Nc6 {[%clk 0:03:01]} 5. bxc5 {[%clk 0:02:46]}  d4 {[%clk 0:03:02]} 6. Bd3 {[%clk 0:02:35]}  Bxc5 {[%clk 0:03:02]} 7. O-O {[%clk 0:02:36]}  Nge7 {[%clk 0:03:03]} 8. Ba3 {[%clk 0:02:35]}  Qa5 {[%clk 0:02:57]} 9. Bxc5 {[%clk 0:02:15]}  Qxc5 {[%clk 0:02:58]} 10. Re1 {[%clk 0:02:15]}  b6 {[%clk 0:02:50]} 11. Be4 {[%clk 0:02:13]}  Bb7 {[%clk 0:02:50]} 12. d3 {[%clk 0:02:13]}  Rc8 {[%clk 0:02:48]} 13. Nbd2 {[%clk 0:02:13]}  Rc7 {[%clk 0:02:23]} 14. Nc4 {[%clk 0:01:49]}  Nc8 {[%clk 0:01:58]} 15. a4 {[%clk 0:01:42]}  h6 {[%clk 0:01:57]} 16. Nh4 {[%clk 0:01:32]}  N6e7 {[%clk 0:01:31]} 17. Bxb7 {[%clk 0:01:14]}  Rxb7 {[%clk 0:01:32]} 18. Qg4 {[%clk 0:01:14]}  O-O {[%clk 0:01:32]} 19. Re4 {[%clk 0:01:03]}  Rd7 {[%clk 0:01:27]} 20. Nf3 {[%clk 0:00:56]}  Nf5 {[%clk 0:01:24]} 21. Qf4 {[%clk 0:00:56]}  Nce7 {[%clk 0:01:19]} 22. g4 {[%clk 0:00:53]}  Ng6 {[%clk 0:01:19]} 23. Qd2 {[%clk 0:00:47]}  Nfh4 {[%clk 0:01:19]} 24. Nxh4 {[%clk 0:00:47]}  Nxh4 {[%clk 0:01:19]} 25. Qf4 {[%clk 0:00:38]}  Rd5 {[%clk 0:01:12]} 26. Qg3 {[%clk 0:00:34]}  Ng6 {[%clk 0:01:04]} 27. f4 {[%clk 0:00:34]}  Ne7 {[%clk 0:01:04]} 28. Rf1 {[%clk 0:00:28]}  a6 {[%clk 0:01:01]} 29. f5 {[%clk 0:00:28]}  b5 {[%clk 0:01:01]} 30. axb5 {[%clk 0:00:24]}  axb5 {[%clk 0:01:01]} 31. Nd6 {[%clk 0:00:23]}  Nc6 {[%clk 0:00:54]} 32. fxe6 {[%clk 0:00:20]}  Rxe5 {[%clk 0:00:52]} 33. Nxf7 {[%clk 0:00:11]}  Rxe4 {[%clk 0:00:48]} 34. dxe4 {[%clk 0:00:12]}  d3+ {[%clk 0:00:48]} 35. Qf2 {[%clk 0:00:09]}  Qxf2+ {[%clk 0:00:47]} 36. Rxf2 {[%clk 0:00:10]}  dxc2 {[%clk 0:00:47]} 37. Rxc2 {[%clk 0:00:11]}  Nd4 {[%clk 0:00:48]} 38. Rb2 {[%clk 0:00:09]}  Nxe6 {[%clk 0:00:47]} 39. Nd6 {[%clk 0:00:09]}  Rd8 {[%clk 0:00:37]} 40. Nxb5 {[%clk 0:00:09]}  Rb8 {[%clk 0:00:38]} 41. Rb1 {[%clk 0:00:08]}  Nd4 {[%clk 0:00:21]} 42. Nc3 {[%clk 0:00:09]}  Rc8 {[%clk 0:00:21]} 43. Nd5 {[%clk 0:00:06]}  Rc2 {[%clk 0:00:21]} 44. Rd1 {[%clk 0:00:04]}  Nf3+ {[%clk 0:00:21]} 45. Kf1 {[%clk 0:00:04]}  Nxh2+ {[%clk 0:00:22]} 46. Kg1 {[%clk 0:00:04]}  Nf3+ {[%clk 0:00:22]} 47. Kf1 {[%clk 0:00:05]}  Nh2+ {[%clk 0:00:23]} 48. Kg1 {[%clk 0:00:05]}  Nxg4 {[%clk 0:00:24]} 49. Rf1 {[%clk 0:00:04]}  Ne5 {[%clk 0:00:22]} 50. Ne7+ {[%clk 0:00:03]}  Kh7 {[%clk 0:00:22]} 51. Rf7 {[%clk 0:00:01]}  Nxf7 {[%clk 0:00:20]} 0-1


[Site "https://www.chess.com"]

[Event "Titled Tuesday Blitz August 08 Early 2023"]
[White "Sidletskyi, Ivan"]
[Black "Morefield, Jason"]
[WhiteFideId "14156024"]
[BlackFideId "30920825"]
[WhiteElo "2522"]
[BlackElo "2701"]
[Result "0-1"]
[Round "4"]
[TimeControl "180+1"]
[Date "2023.08.08"]
[WhiteClock "0:00:13"]
[BlackClock "0:00:17"]
[Board "87"]

1. e4 {[%clk 0:03:00]}  c5 {[%clk 0:02:57]} 2. Nf3 {[%clk 0:03:00]}  d6 {[%clk 0:02:58]} 3. d4 {[%clk 0:03:01]}  cxd4 {[%clk 0:02:59]} 4. Nxd4 {[%clk 0:03:02]}  Nf6 {[%clk 0:02:59]} 5. Nc3 {[%clk 0:03:02]}  Nc6 {[%clk 0:03:00]} 6. g3 {[%clk 0:03:01]}  g6 {[%clk 0:03:00]} 7. Nxc6 {[%clk 0:03:01]}  bxc6 {[%clk 0:02:59]} 8. Bg2 {[%clk 0:03:02]}  Qc7 {[%clk 0:02:59]} 9. b3 {[%clk 0:03:02]}  Bg7 {[%clk 0:02:59]} 10. Bb2 {[%clk 0:03:03]}  Ba6 {[%clk 0:02:57]} 11. Qd2 {[%clk 0:02:57]}  h5 {[%clk 0:02:56]} 12. O-O-O {[%clk 0:02:55]}  Rb8 {[%clk 0:02:43]} 13. f4 {[%clk 0:02:52]}  c5 {[%clk 0:02:35]} 14. Kb1 {[%clk 0:02:20]}  O-O {[%clk 0:02:20]} 15. h3 {[%clk 0:02:03]}  c4 {[%clk 0:02:17]} 16. g4 {[%clk 0:02:03]}  cxb3 {[%clk 0:02:14]} 17. cxb3 {[%clk 0:01:59]}  Rfc8 {[%clk 0:01:54]} 18. gxh5 {[%clk 0:01:50]}  Nxh5 {[%clk 0:01:51]} 19. Nd5 {[%clk 0:01:44]}  Qd8 {[%clk 0:01:50]} 20. Bf3 {[%clk 0:01:38]}  e6 {[%clk 0:01:39]} 21. Nb4 {[%clk 0:00:56]}  Bb7 {[%clk 0:01:24]} 22. Rhg1 {[%clk 0:00:46]}  Bxb2 {[%clk 0:01:16]} 23. Kxb2 {[%clk 0:00:43]}  Qf6+ {[%clk 0:01:13]} 24. e5 {[%clk 0:00:43]}  Qxf4 {[%clk 0:00:43]} 25. Qxf4 {[%clk 0:00:20]}  Nxf4 {[%clk 0:00:44]} 26. Bxb7 {[%clk 0:00:12]}  Rxb7 {[%clk 0:00:44]} 27. Nc2 {[%clk 0:00:05]}  dxe5 {[%clk 0:00:44]} 28. h4 {[%clk 0:00:04]}  Rbc7 {[%clk 0:00:43]} 29. Ne3 {[%clk 0:00:02]}  Rc3 {[%clk 0:00:40]} 30. Nc4 {[%clk 0:00:02]}  R3xc4 {[%clk 0:00:34]} 31. bxc4 {[%clk 0:00:02]}  Rxc4 {[%clk 0:00:35]} 32. Rd8+ {[%clk 0:00:03]}  Kg7 {[%clk 0:00:35]} 33. Rd7 {[%clk 0:00:04]}  a5 {[%clk 0:00:34]} 34. Rgd1 {[%clk 0:00:03]}  Nd5 {[%clk 0:00:32]} 35. Ra7 {[%clk 0:00:03]}  a4 {[%clk 0:00:31]} 36. Rf1 {[%clk 0:00:03]}  Nf4 {[%clk 0:00:26]} 37. Rd1 {[%clk 0:00:03]}  Nd5 {[%clk 0:00:16]} 38. Rf1 {[%clk 0:00:04]}  Rf4 {[%clk 0:00:17]} 39. Rxf4 {[%clk 0:00:03]}  exf4 {[%clk 0:00:18]} 40. Rxa4 {[%clk 0:00:04]}  f3 {[%clk 0:00:15]} 41. Rd4 {[%clk 0:00:04]}  Ne3 {[%clk 0:00:11]} 42. Rd2 {[%clk 0:00:03]}  f2 {[%clk 0:00:11]} 43. Rxf2 {[%clk 0:00:03]}  Nd1+ {[%clk 0:00:12]} 44. Kb3 {[%clk 0:00:03]}  Nxf2 {[%clk 0:00:13]} 45. a4 {[%clk 0:00:03]}  Ne4 {[%clk 0:00:13]} 46. Kc4 {[%clk 0:00:03]}  f5 {[%clk 0:00:12]} 47. a5 {[%clk 0:00:04]}  f4 {[%clk 0:00:12]} 48. a6 {[%clk 0:00:04]}  f3 {[%clk 0:00:13]} 49. a7 {[%clk 0:00:05]}  f2 {[%clk 0:00:12]} 50. a8=Q {[%clk 0:00:05]}  f1=Q+ {[%clk 0:00:12]} 51. Kd4 {[%clk 0:00:06]}  Qf2+ {[%clk 0:00:09]} 52. Ke5 {[%clk 0:00:06]}  Qf5+ {[%clk 0:00:09]} 53. Kd4 {[%clk 0:00:05]}  Qd5+ {[%clk 0:00:09]} 54. Qxd5 {[%clk 0:00:05]}  exd5 {[%clk 0:00:10]} 55. Kxd5 {[%clk 0:00:06]}  Nf6+ {[%clk 0:00:10]} 56. Ke5 {[%clk 0:00:06]}  Nh5 {[%clk 0:00:11]} 57. Ke4 {[%clk 0:00:06]}  Kf6 {[%clk 0:00:11]} 58. Kf3 {[%clk 0:00:07]}  Kf5 {[%clk 0:00:12]} 59. Kg2 {[%clk 0:00:07]}  Kg4 {[%clk 0:00:13]} 60. Kh2 {[%clk 0:00:07]}  Kxh4 {[%clk 0:00:14]} 61. Kg2 {[%clk 0:00:08]}  g5 {[%clk 0:00:14]} 62. Kh2 {[%clk 0:00:09]}  g4 {[%clk 0:00:15]} 63. Kg2 {[%clk 0:00:10]}  g3 {[%clk 0:00:16]} 64. Kg1 {[%clk 0:00:10]}  Kh3 {[%clk 0:00:16]} 65. Kh1 {[%clk 0:00:11]}  Nf4 {[%clk 0:00:17]} 66. Kg1 {[%clk 0:00:12]}  Ne2+ {[%clk 0:00:17]} 67. Kh1 {[%clk 0:00:13]}  g2# {[%clk 0:00:17]} 0-1


[Site "https://www.chess.com"]

[Event "Titled Tuesday Blitz August 08 Early 2023"]
[White "Korchmar, Vasiliy"]
[Black "Domingo Nunez, Alejandro"]
[WhiteFideId "24131750"]
[BlackFideId "22245561"]
[WhiteElo "2701"]
[BlackElo "2522"]
[Result "1-0"]
[Round "4"]
[TimeControl "180+1"]
[Date "2023.08.08"]
[WhiteClock "0:01:56"]
[BlackClock "0:01:06"]
[Board "88"]

1. e4 {[%clk 0:03:00]}  g6 {[%clk 0:03:00]} 2. d4 {[%clk 0:03:00]}  Bg7 {[%clk 0:03:00]} 3. c3 {[%clk 0:02:59]}  c6 {[%clk 0:03:01]} 4. Bd3 {[%clk 0:03:00]}  d5 {[%clk 0:03:01]} 5. e5 {[%clk 0:03:00]}  f6 {[%clk 0:03:02]} 6. Nf3 {[%clk 0:02:36]}  Bg4 {[%clk 0:03:02]} 7. h3 {[%clk 0:02:37]}  Bxf3 {[%clk 0:03:01]} 8. Qxf3 {[%clk 0:02:37]}  fxe5 {[%clk 0:03:02]} 9. dxe5 {[%clk 0:02:38]}  Nd7 {[%clk 0:02:54]} 10. e6 {[%clk 0:02:38]}  Ne5 {[%clk 0:02:54]} 11. Qg3 {[%clk 0:02:39]}  Nxd3+ {[%clk 0:02:53]} 12. Qxd3 {[%clk 0:02:40]}  Qd6 {[%clk 0:02:53]} 13. Qe2 {[%clk 0:02:35]}  Nf6 {[%clk 0:02:49]} 14. O-O {[%clk 0:02:35]}  O-O {[%clk 0:02:47]} 15. Nd2 {[%clk 0:02:23]}  Nh5 {[%clk 0:02:46]} 16. Nf3 {[%clk 0:02:22]}  Nf4 {[%clk 0:02:22]} 17. Bxf4 {[%clk 0:02:22]}  Qxf4 {[%clk 0:02:15]} 18. Rad1 {[%clk 0:02:21]}  Rf5 {[%clk 0:02:09]} 19. Rd3 {[%clk 0:02:16]}  Raf8 {[%clk 0:02:09]} 20. b3 {[%clk 0:02:16]}  Bh6 {[%clk 0:01:29]} 21. Nd4 {[%clk 0:02:10]}  Re5 {[%clk 0:01:28]} 22. Qd1 {[%clk 0:02:05]}  Re4 {[%clk 0:01:19]} 23. Rf3 {[%clk 0:02:02]}  Qe5 {[%clk 0:01:19]} 24. Rxf8+ {[%clk 0:02:01]}  Bxf8 {[%clk 0:01:20]} 25. Qf3 {[%clk 0:01:58]}  c5 {[%clk 0:01:06]} 26. Qf7+ {[%clk 0:01:56]} 1-0


[Site "https://www.chess.com"]

[Event "Titled Tuesday Blitz August 08 Early 2023"]
[White "Agibileg, Uurtsaikh"]
[Black "Droin, Augustin"]
[WhiteFideId "4901606"]
[BlackFideId "45105987"]
[WhiteElo "2691"]
[BlackElo "2518"]
[Result "0-1"]
[Round "4"]
[TimeControl "180+1"]
[Date "2023.08.08"]
[WhiteClock "0:00:00"]
[BlackClock "0:00:08"]
[Board "90"]

1. d4 {[%clk 0:03:00]}  Nf6 {[%clk 0:02:58]} 2. c4 {[%clk 0:03:01]}  e6 {[%clk 0:02:58]} 3. Nc3 {[%clk 0:03:01]}  Bb4 {[%clk 0:02:58]} 4. a3 {[%clk 0:03:01]}  Bxc3+ {[%clk 0:02:58]} 5. bxc3 {[%clk 0:03:02]}  c5 {[%clk 0:02:56]} 6. f3 {[%clk 0:03:02]}  Nc6 {[%clk 0:02:55]} 7. e4 {[%clk 0:03:01]}  d6 {[%clk 0:02:55]} 8. Ne2 {[%clk 0:03:01]}  e5 {[%clk 0:02:55]} 9. Bg5 {[%clk 0:02:54]}  h6 {[%clk 0:02:53]} 10. Bh4 {[%clk 0:02:55]}  O-O {[%clk 0:02:52]} 11. d5 {[%clk 0:02:54]}  Na5 {[%clk 0:02:51]} 12. Nc1 {[%clk 0:02:53]}  b6 {[%clk 0:02:49]} 13. Bd3 {[%clk 0:02:53]}  Ba6 {[%clk 0:02:48]} 14. Qe2 {[%clk 0:02:53]}  g5 {[%clk 0:02:28]} 15. Bf2 {[%clk 0:02:51]}  Nh5 {[%clk 0:02:29]} 16. g3 {[%clk 0:02:49]}  Ng7 {[%clk 0:02:19]} 17. h4 {[%clk 0:02:47]}  f5 {[%clk 0:01:27]} 18. exf5 {[%clk 0:02:45]}  Nxf5 {[%clk 0:01:27]} 19. hxg5 {[%clk 0:02:42]}  hxg5 {[%clk 0:01:27]} 20. Qe4 {[%clk 0:02:35]}  Qf6 {[%clk 0:01:22]} 21. Be3 {[%clk 0:02:13]}  Rf7 {[%clk 0:01:07]} 22. Bf2 {[%clk 0:01:57]}  Raf8 {[%clk 0:01:06]} 23. Ne2 {[%clk 0:01:51]}  Ne7 {[%clk 0:00:32]} 24. Qg4 {[%clk 0:01:46]}  Qxf3 {[%clk 0:00:26]} 25. Qxg5+ {[%clk 0:01:18]}  Rg7 {[%clk 0:00:26]} 26. Bh7+ {[%clk 0:01:19]}  Kh8 {[%clk 0:00:26]} 27. Qh6 {[%clk 0:00:49]}  Qxf2+ {[%clk 0:00:17]} 28. Kd1 {[%clk 0:00:49]}  Qf1+ {[%clk 0:00:17]} 29. Rxf1 {[%clk 0:00:43]}  Rxf1+ {[%clk 0:00:18]} 30. Kc2 {[%clk 0:00:21]}  Rxh7 {[%clk 0:00:18]} 31. Qxd6 {[%clk 0:00:11]}  Rxa1 {[%clk 0:00:17]} 32. Qxe5+ {[%clk 0:00:11]}  Rg7 {[%clk 0:00:17]} 33. d6 {[%clk 0:00:10]}  Nxc4 {[%clk 0:00:07]} 34. Qh5+ {[%clk 0:00:10]}  Rh7 {[%clk 0:00:06]} 35. Qe8+ {[%clk 0:00:10]}  Ng8 {[%clk 0:00:05]} 36. d7 {[%clk 0:00:08]}  Ra2+ {[%clk 0:00:06]} 37. Kb3 {[%clk 0:00:07]}  Rd2 {[%clk 0:00:06]} 38. d8=Q {[%clk 0:00:07]}  Rxd8 {[%clk 0:00:06]} 39. Qxd8 {[%clk 0:00:07]}  Na5+ {[%clk 0:00:07]} 40. Kc2 {[%clk 0:00:06]}  Bxe2 {[%clk 0:00:08]} 41. Qe8 {[%clk 0:00:04]}  Bg4 {[%clk 0:00:05]} 42. Qe5+ {[%clk 0:00:05]}  Rg7 {[%clk 0:00:05]} 43. Qf4 {[%clk 0:00:03]}  Nc6 {[%clk 0:00:05]} 44. Qd6 {[%clk 0:00:03]}  Nce7 {[%clk 0:00:06]} 45. Qe5 {[%clk 0:00:03]}  Nf5 {[%clk 0:00:07]} 46. Qf4 {[%clk 0:00:02]}  Nfh6 {[%clk 0:00:07]} 47. Qe3 {[%clk 0:00:00]}  Kh7 {[%clk 0:00:08]} 0-1


[Site "https://www.chess.com"]

[Event "Titled Tuesday Blitz August 08 Early 2023"]
[White "Skliarov, Viktor"]
[Black "Gavilan Diaz, Mario"]
[WhiteFideId "14106736"]
[BlackFideId "2260905"]
[WhiteElo "2686"]
[BlackElo "2515"]
[Result "1-0"]
[Round "4"]
[TimeControl "180+1"]
[Date "2023.08.08"]
[WhiteClock "0:00:58"]
[BlackClock "0:00:03"]
[Board "92"]

1. e4 {[%clk 0:03:00]}  e6 {[%clk 0:02:57]} 2. d4 {[%clk 0:03:00]}  d5 {[%clk 0:02:57]} 3. e5 {[%clk 0:03:01]}  c5 {[%clk 0:02:56]} 4. c3 {[%clk 0:03:01]}  Qb6 {[%clk 0:02:56]} 5. Nf3 {[%clk 0:03:02]}  Bd7 {[%clk 0:02:57]} 6. Be2 {[%clk 0:03:01]}  Bb5 {[%clk 0:02:57]} 7. c4 {[%clk 0:03:02]}  Bxc4 {[%clk 0:02:57]} 8. Bxc4 {[%clk 0:03:02]}  dxc4 {[%clk 0:02:57]} 9. d5 {[%clk 0:03:02]}  exd5 {[%clk 0:02:54]} 10. Qxd5 {[%clk 0:03:01]}  Ne7 {[%clk 0:02:55]} 11. Qe4 {[%clk 0:03:01]}  Qc6 {[%clk 0:02:51]} 12. Qxc4 {[%clk 0:02:59]}  Qa6 {[%clk 0:02:50]} 13. Qe4 {[%clk 0:02:42]}  Nbc6 {[%clk 0:02:46]} 14. Na3 {[%clk 0:02:39]}  O-O-O {[%clk 0:02:41]} 15. Nc4 {[%clk 0:02:37]}  Ng6 {[%clk 0:02:19]} 16. O-O {[%clk 0:02:32]}  Nd4 {[%clk 0:02:15]} 17. b3 {[%clk 0:02:30]}  Be7 {[%clk 0:02:06]} 18. Bb2 {[%clk 0:02:21]}  Nxf3+ {[%clk 0:01:56]} 19. Qxf3 {[%clk 0:02:19]}  Qe6 {[%clk 0:01:31]} 20. a4 {[%clk 0:02:17]}  Rd5 {[%clk 0:01:24]} 21. a5 {[%clk 0:02:15]}  Rhd8 {[%clk 0:01:20]} 22. a6 {[%clk 0:02:15]}  b6 {[%clk 0:01:15]} 23. Ne3 {[%clk 0:02:11]}  Nh4 {[%clk 0:00:56]} 24. Qe4 {[%clk 0:02:09]}  f5 {[%clk 0:00:56]} 25. Qc4 {[%clk 0:01:48]}  Rxe5 {[%clk 0:00:34]} 26. Bxe5 {[%clk 0:01:44]}  Qxe5 {[%clk 0:00:35]} 27. Rfe1 {[%clk 0:01:35]}  f4 {[%clk 0:00:16]} 28. Nd5 {[%clk 0:01:27]}  Nf3+ {[%clk 0:00:16]} 29. gxf3 {[%clk 0:01:25]}  Qg5+ {[%clk 0:00:16]} 30. Kf1 {[%clk 0:01:24]}  Rxd5 {[%clk 0:00:16]} 31. Rxe7 {[%clk 0:01:18]}  Qh5 {[%clk 0:00:15]} 32. Qe4 {[%clk 0:01:02]}  Kd8 {[%clk 0:00:04]} 33. Re8+ {[%clk 0:00:59]}  Kd7 {[%clk 0:00:03]} 34. Qe6+ {[%clk 0:00:58]}  Kc7 {[%clk 0:00:03]} 35. Rc8# {[%clk 0:00:58]} 1-0


[Site "https://www.chess.com"]